bitfinex-derivatives/quotes_SOLF0:USTF0_20260316
["timestamp","ask_amount","ask_price","bid_price","bid_amount"]
[1773639007431,3.61398058,94.06,94.033,7.72021986]
[1773639007631,3.61398058,94.06,94.034,7.72021986]
[1773639007831,3.61398058,94.06,94.035,7.72021986]
[1773639008034,3.61398058,94.06,94.02,35.52607158]
[1773639008333,3.61398058,94.06,94.021,7.72356595]
[1773639008534,3.61398058,94.06,94.022,7.72356595]
[1773639008728,3.61398058,94.06,94.023,7.72356595]
[1773639008930,3.61398058,94.06,94.024,7.72356595]
[1773639009130,3.61398058,94.05,94.025,7.72356595]
[1773639009332,3.61398058,94.04,94.002,35.52607158]
[1773639009631,3.61398058,94.03,93.985,35.52607158]
[1773639009833,3.61398058,94.02,93.984,33.48]
[1773639010032,33.17395319,94.029,93.985,43.25629919]
[1773639010336,33.17395319,94.029,93.986,7.73022761]
[1773639010527,33.17395319,94.029,93.969,35.52607158]
[1773639010528,3.61398058,94.01,93.969,35.52607158]
[1773639010730,3.62223737,94.01,93.97,7.72612679]
[1773639010927,3.62223737,94.01,93.96,37.10223737]
[1773639010928,3.62223737,94.01,93.971,43.25219837]
[1773639011130,3.62223737,94.02,93.972,7.72612679]
[1773639011333,3.62223737,94.02,93.973,43.25219837]
[1773639011533,3.62223737,94.02,93.974,43.25219837]
[1773639011732,3.62223737,94.02,93.975,7.72612679]
[1773639011930,3.62223737,94.02,93.976,7.72612679]
[1773639012135,3.62223737,94.02,93.977,7.72612679]
[1773639012336,19.123,94.122,94.001,35.52607158]
[1773639012337,3.62223737,94.06,94.001,35.52607158]
[1773639012741,36.79619056,94.06,94.001,35.52607158]
[1773639014637,36.79619056,94.06,94.01,39.14830895]
[1773639014842,33.17395319,94.06,94.01,39.14830895]
[1773639015234,33.17395319,94.06,94.01,35.52607158]
[1773639015438,36.79619056,94.06,94.01,35.52607158]
[1773639016736,33.17395319,94.06,94.01,35.52607158]
[1773639016942,36.79619056,94.06,94.01,35.52607158]
[1773639022647,37.57716626,94.04,93.993,32.40002763]
[1773639022845,3.62223737,94.03,93.98,32.40002763]
[1773639023148,37.57716626,94.03,93.98,32.40002763]
[1773639023349,3.62223737,94.02,93.98,32.40002763]
[1773639023540,3.62223737,94.0,93.951,32.40002763]
[1773639024642,3.62223737,93.99,93.951,32.40002763]
[1773639025146,3.62223737,94.0,93.951,32.40002763]
[1773639026049,3.62223737,93.98,93.932,32.40002763]
[1773639026447,33.5,94.02,93.932,32.40002763]
[1773639026448,3.62223737,93.97,93.932,32.40002763]
[1773639026648,3.62223737,93.98,93.932,32.40002763]
[1773639027346,33.95492889,93.979,93.932,32.40002763]
[1773639027546,3.62223737,93.98,93.932,32.40002763]
[1773639027851,3.62223737,93.99,93.941,32.40002763]
[1773639028448,33.95492889,93.994,93.941,32.40002763]
[1773639028843,3.62223737,93.99,93.941,32.40002763]
[1773639029248,33.95492889,93.969,93.908,32.40002763]
[1773639029547,3.62223737,93.97,93.911,32.40002763]
[1773639029752,3.62223737,93.98,93.921,32.40002763]
[1773639029950,3.62223737,93.96,93.921,32.40002763]
[1773639030147,3.62223737,93.96,93.907,33.5]
[1773639030457,37.57716626,93.96,93.907,33.5]
[1773639030843,37.57716626,93.96,93.908,32.40002763]
[1773639031844,3.62223737,93.96,93.911,32.40002763]
[1773639032048,37.57716626,93.99,93.931,32.40002763]
[1773639033247,3.62223737,93.98,93.931,32.40002763]
[1773639034752,37.57716626,93.99,93.931,32.40002763]
[1773639035657,3.62223737,93.98,93.931,32.40002763]
[1773639035857,33.95492889,93.99,93.931,32.40002763]
[1773639036056,3.62223737,93.98,93.931,32.40002763]
[1773639038050,37.57716626,93.99,93.931,32.40002763]
[1773639038452,37.57716626,93.99,93.941,32.40002763]
[1773639041565,33.95492889,93.99,93.941,32.40002763]
[1773639042969,33.95492889,94.009,93.951,32.40002763]
[1773639043370,33.95492889,93.999,93.951,32.40002763]
[1773639044069,37.57716626,94.01,93.961,32.40002763]
[1773639044275,33.95492889,93.999,93.95,36.022265]
[1773639044466,33.95492889,93.999,93.95,32.40002763]
[1773639046075,33.95492889,94.009,93.96,3.62223737]
[1773639046275,33.95492889,94.009,93.95,36.022265]
[1773639046771,33.95492889,94.009,93.95,32.40002763]
[1773639047070,33.52,94.023,93.95,32.40002763]
[1773639047071,37.57716626,93.99,93.95,32.40002763]
[1773639047670,33.52,94.023,93.927,32.40002763]
[1773639047671,33.95492889,93.979,93.927,32.40002763]
[1773639048272,33.95492889,93.979,93.926,33.52]
[1773639048273,33.95492889,93.979,93.931,32.40002763]
[1773639049477,3.62223737,93.99,93.931,32.40002763]
[1773639049779,33.95492889,93.989,93.931,32.40002763]
[1773639049977,37.57716626,93.98,93.931,32.40002763]
[1773639050376,3.62223737,93.97,93.931,32.40002763]
[1773639052476,37.57716626,93.98,93.931,32.40002763]
[1773639053074,33.95492889,93.98,93.931,32.40002763]
[1773639053471,37.57716626,93.98,93.931,32.40002763]
[1773639056974,3.62223737,93.98,93.931,32.40002763]
[1773639057175,3.62223737,93.98,93.926,33.52]
[1773639057176,32.01649873,93.995,93.941,34.02294569]
[1773639057377,32.01649873,93.989,93.941,34.02294569]
[1773639057578,32.01649873,93.969,93.908,34.02294569]
[1773639057777,32.01649873,93.969,93.91,34.02294569]
[1773639057979,35.6387361,93.96,93.91,34.02294569]
[1773639058684,35.6387361,93.96,93.91,37.64518306]
[1773639058980,32.01649873,93.96,93.91,37.64518306]
[1773639059981,35.6387361,93.96,93.91,37.64518306]
[1773639060375,35.6387361,93.96,93.91,34.02294569]
[1773639062781,3.62223737,93.95,93.91,34.02294569]
[1773639063083,35.6387361,93.96,93.91,34.02294569]
[1773639065980,32.01649873,93.975,93.921,34.02294569]
[1773639066776,32.01649873,93.975,93.896,33.52]
[1773639066777,32.01649873,93.975,93.931,34.02294569]
[1773639071380,3.62518802,93.98,93.931,34.02294569]
[1773639071786,32.01649873,93.979,93.908,33.52]
[1773639072080,30.7502642,93.93,93.869,34.02294569]
[1773639072285,34.37545222,93.93,93.871,34.02294569]
[1773639072684,3.62518802,93.94,93.881,34.02294569]
[1773639073985,35.64168675,93.94,93.881,34.02294569]
[1773639074387,3.62518802,93.93,93.881,34.02294569]
[1773639076789,3.62518802,93.92,93.881,34.02294569]
[1773639080084,3.62518802,93.93,93.881,34.02294569]
[1773639080388,3.62518802,93.94,93.881,34.02294569]
[1773639080990,32.01649873,93.943,93.891,34.02294569]
[1773639082187,36.8623589,93.94,93.891,34.02294569]
[1773639083088,3.62518802,93.93,93.891,34.02294569]
[1773639085288,3.62518802,93.92,93.871,34.06570236]
[1773639085484,36.98580708,93.92,93.871,34.06570236]
[1773639085685,33.36968967,93.909,93.857,34.06570236]
[1773639087684,33.42158391,93.919,93.861,34.06570236]
[1773639088188,3.62518802,93.91,93.861,34.06570236]
[1773639089381,37.05070147,93.91,93.861,34.06570236]
[1773639089587,3.62518802,93.9,93.861,34.06570236]
[1773639091091,37.05070147,93.91,93.861,34.06570236]
[1773639091786,3.62518802,93.9,93.861,34.06570236]
[1773639092190,37.05070147,93.91,93.861,34.06570236]
[1773639092692,3.62518802,93.87,93.82,3.62518802]
[1773639092888,33.54842662,93.879,93.821,34.06570236]
[1773639093589,3.62518802,93.87,93.821,34.06570236]
[1773639095191,33.54842662,93.879,93.821,34.06570236]
[1773639095688,3.62518802,93.83,93.783,34.06570236]
[1773639096091,3.62518802,93.82,93.783,34.06570236]
[1773639096289,3.62518802,93.83,93.783,34.06570236]
[1773639098389,3.62518802,93.82,93.783,34.06570236]
[1773639099195,35.24606762,93.831,93.749,67.60570236]
[1773639099395,35.24606762,93.831,93.761,34.06570236]
[1773639099599,3.62518802,93.8,93.739,34.06570236]
[1773639099798,3.62518802,93.8,93.751,34.06570236]
[1773639099996,35.24606762,93.819,93.761,34.06570236]
[1773639100199,3.62518802,93.81,93.761,34.06570236]
[1773639100702,35.24606762,93.819,93.761,34.06570236]
[1773639100886,3.62518802,93.81,93.761,34.06570236]
[1773639101695,33.54,93.846,93.737,34.06570236]
[1773639101696,35.24606762,93.809,93.737,34.06570236]
[1773639101900,3.62518802,93.77,93.737,34.06570236]
[1773639102400,3.62518802,93.78,93.737,34.06570236]
[1773639102991,3.62518802,93.79,93.737,34.06570236]
[1773639103397,3.62518802,93.78,93.737,34.06570236]
[1773639104095,3.62518802,93.8,93.741,34.06570236]
[1773639104290,3.62518802,93.79,93.741,34.06570236]
[1773639104494,34.31500712,93.811,93.741,34.06570236]
[1773639104690,33.54,93.827,93.741,34.06570236]
[1773639104691,3.62518802,93.78,93.741,34.06570236]
[1773639105097,34.31500712,93.797,93.741,34.06570236]
[1773639105300,3.62518802,93.8,93.751,34.06570236]
[1773639105601,3.62518802,93.81,93.751,34.06570236]
[1773639105793,3.62518802,93.81,93.761,34.06570236]
[1773639106391,34.23381016,93.815,93.761,34.06570236]
[1773639106595,37.86731593,93.83,93.771,34.06570236]
[1773639106797,3.62518802,93.82,93.771,34.06570236]
[1773639106993,3.62518802,93.83,93.781,34.06570236]
[1773639107399,3.62518802,93.84,93.781,34.06570236]
[1773639107698,3.62518802,93.86,93.801,34.06570236]
[1773639108096,34.92727723,93.869,93.82,3.62518802]
[1773639108298,34.92727723,93.869,93.82,34.06570236]
[1773639110201,34.15041318,93.885,93.82,34.06570236]
[1773639110396,34.15041318,93.879,93.796,34.06570236]
[1773639116606,34.15041318,93.879,93.79,9.08270627]
[1773639116607,34.15041318,93.879,93.798,32.56324617]
[1773639121108,33.54,93.901,93.798,32.56324617]
[1773639121410,32.81377129,93.927,93.841,32.56324617]
[1773639121603,32.81377129,93.919,93.841,32.56324617]
[1773639130818,3.63105884,93.9,93.841,32.56324617]
[1773639132219,32.81377129,93.901,93.851,32.56324617]
[1773639133520,32.81377129,93.89,93.831,32.56324617]
[1773639133819,3.63047262,93.88,93.831,32.56324617]
[1773639134024,3.63047262,93.96,93.871,32.56324617]
[1773639134322,32.81377129,93.97,93.92,3.63047262]
[1773639135317,36.44424391,93.97,93.914,32.56324617]
[1773639135618,36.44424391,93.96,93.9,36.19371879]
[1773639136119,36.44424391,93.96,93.91,3.63047262]
[1773639136620,3.63047262,93.97,93.91,36.19371879]
[1773639136821,32.81377129,93.985,93.91,32.56324617]
[1773639146930,34.27906804,94.008,93.921,34.62182377]
[1773639148728,34.27906804,93.999,93.921,34.62182377]
[1773639152741,34.27906804,93.979,93.903,34.62182377]
[1773639156753,3.62663892,93.96,93.903,34.62182377]
[1773639158151,34.27906804,93.959,93.903,34.62182377]
[1773639158547,3.62663892,93.95,93.903,34.62182377]
[1773639160055,34.27906804,93.959,93.903,34.62182377]
[1773639161159,34.23012355,93.959,93.903,34.62182377]
[1773639162152,3.62663892,93.95,93.903,34.62182377]
[1773639163548,34.23012355,93.959,93.903,34.62182377]
[1773639166357,3.62663892,93.95,93.903,34.62182377]
[1773639170254,34.23012355,93.959,93.903,34.62182377]
[1773639172764,3.62663892,93.94,93.894,34.71790121]
[1773639173065,36.93795131,93.949,93.894,34.71790121]
[1773639174162,36.93795131,93.949,93.896,34.71790121]
[1773639174563,36.93795131,93.949,93.901,34.71790121]
[1773639175955,36.93795131,93.949,93.897,9.79142174]
[1773639176158,19.149,93.993,93.824,210.56096646]
[1773639176159,3.62663892,93.93,93.886,37.17975452]
[1773639176358,39.14343443,93.93,93.886,37.17975452]
[1773639179268,35.51679551,93.93,93.886,37.17975452]
[1773639179468,39.14343443,93.93,93.881,9.79142174]
[1773639179662,39.14343443,93.93,93.882,37.17975452]
[1773639181370,3.62663892,93.92,93.882,37.17975452]
[1773639181868,39.14343443,93.93,93.882,37.17975452]
[1773639183166,3.62663892,93.92,93.882,37.17975452]
[1773639183368,39.14343443,93.92,93.882,37.17975452]
[1773639183570,39.14343443,93.92,93.871,9.79142174]
[1773639183762,39.14343443,93.92,93.871,46.97117626]
[1773639184064,39.14343443,93.92,93.872,37.17975452]
[1773639184872,35.51679551,93.909,93.868,9.79142174]
[1773639185061,35.51679551,93.909,93.867,9.79142174]
[1773639186065,3.62663892,93.9,93.866,33.52]
[1773639186969,39.14343443,93.9,93.866,33.52]
[1773639187973,3.62663892,93.91,93.867,37.17975452]
[1773639189368,35.51679551,93.914,93.867,37.17975452]
[1773639191274,3.62663892,93.91,93.867,37.17975452]
[1773639192775,3.63023674,93.91,93.867,37.17975452]
[1773639192975,39.14703225,93.91,93.867,37.17975452]
[1773639193977,3.63023674,93.92,93.867,37.17975452]
[1773639194479,35.51679551,93.924,93.871,37.17975452]
[1773639196073,3.63023674,93.92,93.871,37.17975452]
[1773639197877,35.51679551,93.924,93.871,37.17975452]
[1773639198076,35.51679551,93.924,93.881,37.17975452]
[1773639199981,35.51679551,93.924,93.866,33.52]
[1773639199982,39.14703225,93.91,93.868,37.17975452]
[1773639203183,36.23013437,93.925,93.871,34.04480083]
[1773639206492,36.23013437,93.909,93.866,33.52]
[1773639206886,36.23013437,93.909,93.857,43.83622257]
[1773639207087,36.23013437,93.909,93.858,9.79142174]
[1773639207788,36.23013437,93.909,93.858,43.83622257]
[1773639207987,36.23013437,93.909,93.859,34.04480083]
[1773639209388,36.23013437,93.909,93.859,43.83622257]
[1773639209892,36.23013437,93.909,93.86,37.67503757]
[1773639210991,36.23013437,93.899,93.849,9.79142174]
[1773639211189,36.23013437,93.899,93.848,34.04480083]
[1773639211190,36.23013437,93.899,93.85,33.54]
[1773639211691,36.23013437,93.889,93.841,34.04480083]
[1773639211990,36.23013437,93.971,93.885,9.79142174]
[1773639212186,36.23013437,93.971,93.93,3.63023674]
[1773639212588,36.23013437,93.971,93.92,3.63023674]
[1773639212785,1.85251234,94.029,93.911,17.10424266]
[1773639212786,36.23013437,93.969,93.911,17.10424266]
[1773639212983,36.23013437,93.959,93.892,17.12153091]
[1773639213181,36.23013437,93.949,93.892,17.12153091]
[1773639215987,36.23013437,93.939,93.884,33.54]
[1773639216591,36.23013437,93.939,93.885,17.23833569]
[1773639217889,36.23013437,93.955,93.9,20.75082344]
[1773639218294,36.23013437,93.949,93.9,17.1205867]
[1773639219694,36.23013437,93.949,93.9,20.75082344]
[1773639220195,36.23013437,93.949,93.9,17.1205867]
[1773639223799,36.23013437,93.939,93.89,13.45218398]
[1773639224097,36.23013437,93.939,93.891,16.98520639]
[1773639224492,36.23013437,93.939,93.897,9.82194724]
[1773639224699,36.23013437,93.939,93.9,3.63023674]
[1773639224998,36.23013437,93.939,93.889,9.82194724]
[1773639225198,36.23013437,93.939,93.89,3.63023674]
[1773639225699,36.23013437,93.939,93.891,17.04891363]
[1773639228194,36.23013437,93.939,93.9,3.63023674]
[1773639228797,36.23013437,93.939,93.893,9.82194724]
[1773639230000,36.23013437,93.939,93.891,17.04891363]
[1773639232299,36.23013437,93.939,93.893,9.82194724]
[1773639233000,36.23013437,93.939,93.894,9.82194724]
[1773639233202,37.76493645,93.969,93.901,17.07486491]
[1773639233399,37.76493645,93.959,93.901,17.07486491]
[1773639233603,3.63023674,93.95,93.903,9.82194724]
[1773639233803,37.76493645,93.949,93.899,9.82194724]
[1773639234104,37.76493645,93.949,93.9,30.5721276]
[1773639234603,37.76493645,93.949,93.904,9.82194724]
[1773639235492,37.76493645,93.949,93.898,9.82194724]
[1773639237201,37.76493645,93.949,93.899,9.82194724]
[1773639238597,34.44880014,93.939,93.899,9.82194724]
[1773639238802,34.44880014,93.929,93.882,9.82194724]
[1773639239502,34.44880014,93.929,93.883,9.82194724]
[1773639239803,34.44880014,93.929,93.882,9.82194724]
[1773639240004,34.44880014,93.929,93.883,9.82194724]
[1773639242808,34.44880014,93.929,93.874,17.28476369]
[1773639242809,34.44880014,93.909,93.874,9.82194724]
[1773639243200,34.44880014,93.909,93.858,17.34882374]
[1773639243201,34.44880014,93.909,93.87,9.82194724]
[1773639243403,34.44880014,93.909,93.866,9.82194724]
[1773639243602,33.52,93.953,93.866,9.82194724]
[1773639243603,34.44880014,93.899,93.866,9.82194724]
[1773639244207,34.44880014,93.899,93.85,3.63023674]
[1773639244208,34.44880014,93.899,93.859,0.00094724]
[1773639244415,34.44880014,93.899,93.848,33.54]
[1773639244717,34.44880014,93.889,93.848,33.54]
[1773639246110,34.44880014,93.903,93.851,18.5276297]
[1773639249519,3.63023674,93.9,93.851,18.5276297]
[1773639251122,38.07903688,93.9,93.851,18.5276297]
[1773639253622,36.62238534,93.9,93.851,18.5276297]
[1773639254313,34.44880014,93.889,93.843,33.54]
[1773639254821,34.44880014,93.902,93.844,18.38261677]
[1773639255123,34.44880014,93.902,93.851,18.38261677]
[1773639255323,38.0798946,93.9,93.851,18.38261677]
[1773639256826,34.44880014,93.9,93.851,18.38261677]
[1773639257025,38.0798946,93.9,93.851,18.38261677]
[1773639261529,34.44880014,93.889,93.843,33.54]
[1773639262721,34.44880014,93.889,93.837,18.46506479]
[1773639263727,36.30079786,93.869,93.824,18.42262895]
[1773639263930,36.30079786,93.869,93.778,26.18019247]
[1773639263931,36.30079786,93.869,93.772,31.52533741]
[1773639264127,3.63109446,93.82,93.772,31.52533741]
[1773639265931,39.93189232,93.83,93.772,31.52533741]
[1773639268627,3.63109446,93.82,93.772,31.52533741]
[1773639268928,36.30079786,93.819,93.772,31.52533741]
[1773639269133,36.30079786,93.809,93.758,33.54]
[1773639269334,36.30079786,93.809,93.756,31.03250415]
[1773639270830,3.63109446,93.81,93.761,31.47615849]
[1773639271036,3.63109446,93.82,93.771,31.47615849]
[1773639271232,36.30079786,93.839,93.78,35.10725295]
[1773639271537,36.30079786,93.839,93.711,51.116]
[1773639271538,36.30079786,93.839,93.791,31.47615849]
[1773639275633,3.63109446,93.85,93.791,31.47615849]
[1773639277138,36.30079786,93.868,93.81,3.63109446]
[1773639277339,36.30079786,93.859,93.801,29.92088224]
[1773639277638,36.30079786,93.859,93.811,29.92088224]
[1773639277942,36.30079786,93.859,93.82,3.63109446]
[1773639279238,36.30079786,93.859,93.811,29.92088224]
[1773639282643,36.30079786,93.839,93.771,30.15159328]
[1773639282849,36.30079786,93.839,93.781,30.15159328]
[1773639284846,36.30079786,93.839,93.773,29.71031715]
[1773639285544,36.30079786,93.829,93.773,29.71031715]
[1773639286645,36.30079786,93.819,93.773,29.71031715]
[1773639290654,36.30079786,93.819,93.78,3.63109446]
[1773639290952,36.30079786,93.819,93.773,29.71031715]
[1773639292651,36.30079786,93.819,93.761,33.54]
[1773639292855,3.63109446,93.81,93.761,63.32518441]
[1773639293154,3.63109446,93.81,93.762,29.78518441]
[1773639293155,41.42351409,93.81,93.762,29.78518441]
[1773639293853,37.79241963,93.81,93.762,29.78518441]
[1773639294155,41.42351409,93.81,93.762,29.78518441]
[1773639294357,37.79241963,93.81,93.762,29.78518441]
[1773639295754,41.42351409,93.81,93.762,29.78518441]
[1773639299250,37.79241963,93.81,93.762,29.78518441]
[1773639299957,35.48440192,93.799,93.761,33.54]
[1773639300146,35.48440192,93.799,93.747,30.43230559]
[1773639300454,35.48440192,93.799,93.751,30.43230559]
[1773639300756,35.48440192,93.799,93.752,30.43230559]
[1773639301048,35.48440192,93.789,93.751,33.54]
[1773639301257,35.48440192,93.789,93.735,33.54]
[1773639301555,35.48440192,93.779,93.735,33.54]
[1773639302245,3.63109446,93.76,93.714,30.18088225]
[1773639302849,35.48440192,93.749,93.701,31.07161469]
[1773639304154,35.48440192,93.739,93.692,33.54]
[1773639304353,35.48440192,93.739,93.693,31.21806649]
[1773639305660,35.48440192,93.753,93.693,31.21806649]
[1773639306060,35.48440192,93.753,93.7,3.63109446]
[1773639306760,35.48440192,93.753,93.693,31.21806649]
[1773639306761,3.63109446,93.75,93.693,31.21806649]
[1773639306950,39.11549638,93.75,93.693,31.21806649]
[1773639307353,46.23280344,93.953,93.692,33.54]
[1773639307354,37.47877874,93.811,93.74,3.63109446]
[1773639307561,37.47877874,93.811,93.76,3.63109446]
[1773639307954,38.45768992,93.809,93.756,33.54]
[1773639312564,37.97522135,93.799,93.748,1.7494679]
[1773639313267,37.99927464,93.869,93.791,0.92648379]
[1773639313559,37.99927464,93.859,93.8,3.63109446]
[1773639314866,37.99927464,93.859,93.8,3.63428067]
[1773639321070,37.99927464,93.859,93.81,3.63428067]
[1773639323170,37.99927464,93.859,93.811,0.59091309]
[1773639324272,38.32029916,93.875,93.821,0.63837544]
[1773639324978,38.27766288,93.869,93.821,0.63837544]
[1773639326576,38.27766288,93.869,93.82,3.63428067]
[1773639331482,38.27766288,93.869,93.81,3.63428067]
[1773639331982,38.27766288,93.869,93.811,0.78567613]
[1773639332182,38.27766288,93.869,93.82,3.63428067]
[1773639332681,38.27766288,93.869,93.811,0.78567613]
[1773639333481,38.27766288,93.869,93.82,3.63428067]
[1773639334484,38.27766288,93.869,93.821,0.76650387]
[1773639338691,38.27766288,93.869,93.81,3.63428067]
[1773639339189,38.27766288,93.869,93.811,0.82896091]
[1773639340895,38.27766288,93.869,93.82,4.50983521]
[1773639341490,38.27766288,93.869,93.84,3.63428067]
[1773639341693,38.27766288,93.869,93.83,4.50983521]
[1773639341887,38.27766288,93.869,93.83,0.87555454]
[1773639343691,39.22309421,93.882,93.83,3.63428067]
[1773639345998,39.22309421,93.882,93.84,3.63428067]
[1773639347398,39.22309421,93.882,93.83,3.63428067]
[1773639347598,39.22309421,93.882,93.84,3.63428067]
[1773639352591,39.22309421,93.882,93.83,3.63428067]
[1773639353793,39.40439162,93.942,93.86,3.63428067]
[1773639353994,39.40439162,93.889,93.83,3.63428067]
[1773639355489,39.40439162,93.889,93.831,0.0286259]
[1773639356199,39.40439162,93.889,93.84,3.63428067]
[1773639356999,39.40439162,93.889,93.842,0.7629836]
[1773639358399,39.40439162,93.889,93.845,9.87892257]
[1773639358898,39.40439162,93.889,93.844,9.87892257]
[1773639359301,39.40439162,93.889,93.842,0.7629836]
[1773639360500,39.40439162,93.889,93.845,9.87892257]
[1773639360898,39.40439162,93.889,93.845,11.03564895]
[1773639361205,39.40439162,93.889,93.838,9.87892257]
[1773639361702,39.40439162,93.889,93.84,3.63428067]
[1773639362098,39.40439162,93.889,93.842,9.87892257]
[1773639362602,38.01548503,93.919,93.851,1.96690538]
[1773639363898,38.01548503,93.919,93.87,3.63428067]
[1773639364093,38.01548503,93.919,93.871,9.87892257]
[1773639364292,38.01548503,93.919,93.87,13.51320324]
[1773639365298,38.01548503,93.919,93.871,2.26908854]
[1773639366299,38.36508581,93.949,93.901,1.32391959]
[1773639366605,38.36508581,93.949,93.9,3.63428067]
[1773639370804,38.75779238,93.939,93.88,3.63428067]
[1773639371306,38.75779238,93.939,93.891,0.60377428]
[1773639371701,38.75779238,93.939,93.9,3.63428067]
[1773639374610,38.75779238,93.939,93.891,0.60377428]
[1773639377913,38.75779238,93.939,93.9,3.62719084]
[1773639378316,38.75779238,93.939,93.891,0.60377428]
[1773639380013,38.75779238,93.939,93.875,0.80607791]
[1773639380219,38.75779238,93.939,93.88,3.62719084]
[1773639381723,38.75779238,93.939,93.875,0.80607791]
[1773639382017,38.75779238,93.939,93.88,3.62719084]
[1773639382812,38.75779238,93.939,93.88,3.99178612]
[1773639383014,38.75779238,93.939,93.881,0.36459528]
[1773639384019,38.65083243,93.919,93.866,9.87892257]
[1773639384215,38.65083243,93.919,93.867,9.87892257]
[1773639384824,38.65083243,93.919,93.87,3.91244471]
[1773639385520,38.65018344,93.933,93.89,3.62719084]
[1773639385725,38.65018344,93.933,93.89,3.91244471]
[1773639385926,38.65018344,93.933,93.853,33.54]
[1773639385927,38.65018344,93.933,93.9,3.62719084]
[1773639386128,38.65395834,93.959,93.9,3.62719084]
[1773639387025,38.65395834,93.959,93.91,3.62719084]
[1773639387221,3.62719084,93.99,93.93,3.62719084]
[1773639387618,9.88924454,94.041,93.93,3.62719084]
[1773639387824,19.139,94.042,93.95,3.62719084]
[1773639388024,3.62719084,94.0,93.95,3.62719084]
[1773639388224,3.62719084,94.0,93.941,16.02294528]
[1773639389022,3.62719084,93.99,93.93,3.62719084]
[1773639389220,37.93472595,93.989,93.93,3.62719084]
[1773639389418,37.93472595,93.979,93.93,3.62719084]
[1773639390623,37.93472595,93.979,93.92,3.62719084]
[1773639390829,37.93472595,93.969,93.92,3.62719084]
[1773639391825,37.93472595,93.983,93.93,19.28687273]
[1773639392029,37.93472595,93.983,93.94,3.62719084]
[1773639392727,37.93472595,93.983,93.95,3.62719084]
[1773639394226,37.93472595,93.983,93.941,15.99950219]
[1773639397630,37.93472595,94.009,93.95,3.62719084]
[1773639397928,3.62719084,94.0,93.95,3.62719084]
[1773639398128,37.93472595,93.999,93.951,16.13009741]
[1773639398335,37.93472595,93.999,93.96,3.62719084]
[1773639398730,37.93472595,93.999,93.94,3.62719084]
[1773639400436,37.93472595,93.999,93.95,3.62719084]
[1773639410141,37.93472595,93.999,93.939,33.52]
[1773639410142,37.93472595,93.999,93.94,15.80755851]
[1773639410345,37.93472595,93.999,93.94,19.43474935]
[1773639411151,37.93472595,93.999,93.95,3.62719084]
[1773639416844,37.93472595,93.999,93.95,18.76816533]
[1773639417150,37.93472595,93.999,93.96,3.62719084]
[1773639418151,37.93472595,93.999,93.95,15.14097449]
[1773639418351,37.93472595,93.999,93.951,33.52]
[1773639420255,37.93472595,93.999,93.952,15.04274199]
[1773639420555,34.83020065,94.011,93.97,3.62719084]
[1773639423356,34.83020065,94.011,93.963,15.04274199]
[1773639424157,34.83020065,94.024,93.99,3.62719084]
[1773639424355,34.83020065,94.024,93.982,15.09059009]
[1773639424356,34.83020065,94.024,94.0,3.62719084]
[1773639424550,34.83020065,94.038,94.0,3.62719084]
[1773639424750,34.83020065,94.038,94.01,3.62719084]
[1773639426457,34.83020065,94.069,94.02,3.62719084]
[1773639426853,34.83020065,94.069,94.03,3.62719084]
[1773639427158,34.83020065,94.069,94.02,3.62719084]
[1773639428655,34.83020065,94.099,94.04,3.62719084]
[1773639429162,34.83020065,94.089,94.032,33.52]
[1773639429557,34.83020065,94.079,94.032,33.52]
[1773639431165,34.83020065,94.079,94.04,3.62719084]
[1773639431461,34.83020065,94.092,94.06,3.62719084]
[1773639431962,34.83020065,94.092,94.05,3.62719084]
[1773639434365,34.83020065,94.092,94.04,3.62719084]
[1773639436166,34.83020065,94.092,94.033,15.94792128]
[1773639436374,34.83020065,94.092,94.05,3.62719084]
[1773639436573,34.83020065,94.092,94.04,3.62719084]
[1773639436875,34.83020065,94.092,94.04,3.61559419]
[1773639438374,34.83020065,94.089,94.034,33.5]
[1773639439080,34.83020065,94.089,94.04,3.61559419]
[1773639439972,34.83020065,94.089,94.05,3.61559419]
[1773639440680,34.83020065,94.089,94.035,16.07948612]
[1773639440984,34.83020065,94.089,94.04,3.61559419]
[1773639442585,34.83020065,94.089,94.06,3.61559419]
[1773639442786,34.83020065,94.089,94.035,33.5]
[1773639443585,34.52492466,94.079,94.035,33.5]
[1773639445881,34.52492466,94.149,94.041,16.14442617]
[1773639446181,34.52492466,94.099,94.041,16.14442617]
[1773639446384,34.52492466,94.089,94.041,16.14442617]
[1773639446683,34.52492466,94.079,94.028,33.5]
[1773639447385,34.52492466,94.079,94.03,3.61559419]
[1773639448579,10.66,94.164,94.028,33.5]
[1773639448580,34.52492466,94.099,94.041,16.42980683]
[1773639449085,34.52492466,94.089,94.041,16.42980683]
[1773639450078,34.52492466,94.089,94.04,3.61559419]
[1773639450279,34.52492466,94.089,94.03,33.48]
[1773639450482,34.52492466,94.079,94.03,33.48]
[1773639451475,34.52492466,94.079,94.03,37.09559419]
[1773639452079,34.52492466,94.079,94.03,33.48]
[1773639452679,3.61559419,94.07,94.03,33.48]
[1773639452881,3.61559419,94.07,93.973,31.98]
[1773639452882,34.52492466,94.059,94.001,16.8985812]